[Event "ChessKid Cup Div-II 2023"]
[Site "Online"]
[Date "2023.05.22"]
[Round "1.4"]
[White "Mamedyarov, Shakhriyar"]
[Black "Fedoseev, Vladimir"]
[Result "1/2-1/2"]
[ECO "D14"]
[WhiteElo "2738"]
[BlackElo "2680"]
[Annotator "TA"]
[PlyCount "98"]
[EventDate "2023.05.21"]
[EventType "k.o."]
[EventCountry "NET"]
[SourceTitle "playchess.com"]
[Source "ChessBase"]
[SourceQuality "1"]
[TimeControl "900+3"]

{[%evp 16,98,59,43,50,54,50,50,58,54,49,46,43,56,52,0,0,10,12,0,0,0,38,40,42,46,73,76,243,222,201,180,301,300,309,297,306,299,299,260,259,0,0,0,0,0,7,0,0,0,0,0,0,0,0,14,14,14,18,18,19,19,19,20,22,0,0,0,0,0,0,0,0,0,0,0,0,0,0,0,0,0,0,0,0]} 1. d4 {[%emt 0:00:03]} d5 {[%emt 0:00:09]} 2. c4 {[%emt 0:00:02]} c6 {[%emt 0:00:02]} 3. cxd5 {[%emt 0:00:01]} cxd5 {[%emt 0:00:01]} 4. Nc3 {[%emt 0:00:00]} Nf6 {[%emt 0:00:02]} 5. Bf4 {[%emt 0:00:01]} Nc6 {[%emt 0:00:01]} 6. e3 {[%emt 0:00:01]} Bf5 {[%emt 0:00:02]} 7. Bb5 {[%emt 0:00:11]} e6 {[%emt 0:00:05]} 8. Nf3 {[%emt 0:00:03]} Bb4 {[%emt 0:00:01]} 9. Ne5 $1 {[%emt 0:00:29]} Qa5 {[%emt 0:00:54] D14: Slav Defence: Exchange variation with ...Bf5.} 10. Bxc6+ {[%emt 0:00:13]} bxc6 {[%emt 0:00:03]} 11. O-O {[%emt 0:00:04]} Bxc3 {[%emt 0:01:06] White is slightly better.} 12. bxc3 {[%emt 0:00:01]} Qa6 {[%emt 0:00:19]} 13. g4 {[%emt 0:00:39]} Bg6 {[%emt 0:00:06]} 14. h4 {[%emt 0:00:02][%cal Bh2h4,Bh4h5][%mdl 32]} Nd7 {[%emt 0:01:14]} 15. h5 {[%emt 0:01:13] [#] Nxd7 would be deadly.} Nxe5 {[%emt 0:00:04]} 16. Bxe5 {[%emt 0:00:00]} f6 $1 {[%emt 0:00:15] [#]} 17. Bxf6 $146 {[%emt 0:01:05]} ({Predecessor:} 17. hxg6 fxe5 18. gxh7 Rxh7 19. Kg2 O-O-O 20. Qf3 Rdh8 21. Rh1 e4 22. Qf7 Rxh1 23. Rxh1 Rxh1 24. Kxh1 Qxa2 {0-1 Levit,R-Zakharian,V URS-chT Republics 13th final C 1975 (5)}) 17... gxf6 {[%emt 0:00:29]} 18. hxg6 {[%emt 0:00:02] Qf3 is the strong threat.} hxg6 {[%emt 0:00:05]} 19. Kg2 {[%emt 0:00:03]} Kf7 {[%emt 0:00:18]} 20. Rh1 {[%emt 0:00:12][%cal Og4g5]} Rxh1 {[%emt 0:00:33]} 21. Qxh1 $14 {[%emt 0:00:00][%mdl 4096] Endgame White wants to mate with Qh7+. KQR-KQR} Kg7 {[%emt 0:00:02] Repels Qh7+} (21... Rg8 $16) 22. Qh2 $18 {[%emt 0:00:09]} Qe2 {[%emt 0:01:36]} 23. Qg3 {[%emt 0:02:46] aiming for Rh1.} ({Stronger than} 23. Rh1 Qxg4+ 24. Kf1 Qd1+ 25. Kg2 Qg4+ 26. Kf1 Qd1+ 27. Kg2 Qg4+ $11) 23... Rf8 {[%emt 0:01:24]} (23... g5 $142) 24. Rh1 {[%emt 0:00:19]} f5 {[%emt 0:01:45]} 25. g5 {[%emt 0:01:15] Qc7+ would kill now.} f4 {[%emt 0:01:21]} 26. Qh3 {[%emt 0:00:49][%csl Gh1][%cal Rh3h7]} (26. exf4 Qe4+ 27. f3 Qe2+ 28. Qf2 Qxf2+ 29. Kxf2 Rb8 $14) 26... Qh5 {[%emt 0:00:23] Inhibits Qh7+.} 27. Qxh5 {[%emt 0:00:04]} (27. Qxe6 f3+ 28. Kg3 Qxh1 $19) 27... gxh5 {[%emt 0:00:02] [#]} 28. Rxh5 $2 {[%emt 0:00:04]} (28. exf4 $1 $18 {Threatens to win with Kf3.} Kg6 29. Kf3) 28... fxe3 $1 $11 {[%emt 0:00:03] The position is equal.} 29. fxe3 $18 {[%emt 0:00:00] KR-KR} Kg6 {[%emt 0:00:39]} 30. Rh6+ {[%emt 0:00:01]} Kf5 $1 {[%emt 0:00:01]} 31. Kg3 {[%emt 0:00:08]} Rg8 {[%emt 0:00:08]} 32. Rf6+ {[%emt 0:02:56]} Kxg5 {[%emt 0:00:03]} 33. Rf7 {[%emt 0:00:01]} a5 {[%emt 0:00:29]} 34. Rc7 {[%emt 0:00:02]} Kf6+ {[%emt 0:00:20]} 35. Kf3 {[%emt 0:00:04]} Rg1 {[%emt 0:01:02]} 36. Rxc6 {[%emt 0:00:04] Strongly threatening c4.} Ra1 {[%emt 0:00:01]} 37. c4 {[%emt 0:01:25]} dxc4 {[%emt 0:00:03]} 38. Ke4 {[%emt 0:00:00] Black must now prevent d5.} c3 $1 {[%emt 0:00:45]} 39. d5 {[%emt 0:00:34]} Kf7 {[%emt 0:00:02]} ({Weaker is} 39... Rxa2 40. Rxe6+ Kf7 41. Rc6 $16) 40. dxe6+ {[%emt 0:00:13]} (40. d6 $5 {[%cal Re4e5]} Rd1 41. Rxc3 Rxd6 42. Rc5 $16) 40... Kf6 {[%emt 0:00:05]} 41. Rxc3 {[%emt 0:00:28]} Rxa2 {[%emt 0:00:02]} 42. Rc6 {[%emt 0:00:02]} a4 {[%emt 0:00:17]} 43. Ra6 {[%emt 0:00:04]} a3 {[%emt 0:00:04]} 44. Kd3 {[%emt 0:00:02]} Ra1 {[%emt 0:00:03]} 45. Kc2 {[%emt 0:00:02]} a2 {[%emt 0:00:05]} 46. Kb2 {[%emt 0:00:02]} Re1 {[%emt 0:00:02]} 47. Rxa2 {[%emt 0:00:01]} Rxe3 {[%emt 0:00:03]} 48. Ra6 {[%emt 0:00:02]} Rxe6 {[%emt 0:00:01]} 49. Rxe6+ {[%emt 0:00:00]} Kxe6 {[%emt 0:00:00] White really could win this.   Weighted Error Value: White=0.14 (very precise) /Black=0.10 (very precise)} 1/2-1/2

[Event "ChessKid Cup Div-II 2023"]
[Site "Online"]
[Date "2023.05.22"]
[Round "1.4"]
[White "Alekseenko, Kirill"]
[Black "Meier, Georg"]
[Result "1/2-1/2"]
[ECO "A45"]
[WhiteElo "2686"]
[BlackElo "2614"]
[Annotator "TA"]
[PlyCount "71"]
[EventDate "2023.05.21"]
[EventType "k.o."]
[EventCountry "NET"]
[SourceTitle "playchess.com"]
[Source "ChessBase"]
[SourceQuality "1"]
[TimeControl "900+3"]

{[%evp 9,71,22,41,41,31,32,45,39,41,40,32,27,30,47,48,32,43,28,61,30,75,78,81,75,83,83,164,166,190,204,229,230,225,223,228,220,221,218,223,216,271,225,410,412,434,257,374,326,303,310,837,762,29991,29992,29992,29993,29993,300,276,0,29993,0,255,0]} 1. d4 {[%emt 0:00:04]} e6 {[%emt 0:00:04]} 2. Bf4 {[%emt 0:00:06]} (2. Nc3 d5 3. Bf4 Bd6 4. e3 Nf6 5. Nf3 Bxf4 6. exf4 O-O 7. Bd3 b6 8. Ne5 Ba6 9. Bxa6 Nxa6 10. Qe2 Qc8 11. O-O c5 12. Rad1 Nb4 13. a3 Nc6 14. Nxc6 Qxc6 {0-1 Alekseenko,K (2686)-Meier,G (2614) ChessKid Cup Play In blitz 2023 (9)}) 2... Nf6 {[%emt 0:00:02]} 3. e3 {[%emt 0:00:01]} b6 {[%emt 0:00:08]} 4. Qf3 {[%emt 0:00:05]} Nc6 {[%emt 0:00:05]} 5. Nc3 {[%emt 0:00:02]} Bb4 {[%emt 0:00:17]} 6. Nge2 {[%emt 0:00:17] A45: Trompowsky Attack.} Nd5 {[%emt 0:00:04]} 7. a3 {[%emt 0:00:34]} Bxc3+ {[%emt 0:00:23]} 8. Nxc3 {[%emt 0:00:03] [#] White is slightly better.} Nxc3 $146 {[%emt 0:00:03]} ({Predecessor:} 8... Nxf4 9. Qxf4 Bb7 10. O-O-O Ne7 11. e4 O-O 12. h4 f5 13. e5 a6 14. h5 b5 {1-0 Bartel,M (2613)-Zysk,R (2400) Bundesliga 1718 2017 (12.4)}) 9. bxc3 {[%emt 0:00:00]} O-O {[%emt 0:00:02]} 10. Bd3 {[%emt 0:00:24]} Bb7 {[%emt 0:00:02]} 11. Qg3 {[%emt 0:00:18]} Ne7 {[%emt 0:00:37]} 12. Bxc7 {[%emt 0:00:14]} Qc8 {[%emt 0:00:01][%cal Od7d6]} 13. O-O {[%emt 0:00:45] Hoping for Bd6. Black is weak on the dark squares} Re8 {[%emt 0:00:24]} 14. c4 $40 {[%emt 0:01:08][%mdl 128] Black needs to defend precisely.} Ba6 {[%emt 0:00:30]} 15. Rfb1 {[%emt 0:01:51]} f6 {[%emt 0:00:17]} 16. e4 {[%emt 0:01:32] White has more active pieces.} Nc6 {[%emt 0:01:12]} 17. d5 {[%emt 0:00:18]} Ne7 {[%emt 0:00:04]} (17... e5 $16) 18. Rb4 $18 {[%emt 0:01:30]} e5 {[%emt 0:00:20]} 19. Bd6 {[%emt 0:00:02]} Ng6 {[%emt 0:00:01]} 20. a4 {[%emt 0:00:37]} Nh8 {[%emt 0:00:12]} 21. Rb3 $1 {[%emt 0:00:41][%cal Bb4b3,Bb3c3,Bc3f3][%mdl 32]} Nf7 {[%emt 0:00:18]} 22. Bb4 {[%emt 0:00:00]} Qc7 {[%emt 0:00:22]} 23. h4 {[%emt 0:00:23]} Rec8 {[%emt 0:00:12]} 24. Rc3 {[%emt 0:01:12]} Qb7 {[%emt 0:00:33]} 25. Be2 {[%emt 0:00:33] And now Be7 would win.} Rc7 $2 {[%emt 0:00:12]} (25... d6 26. Qg4 Kh8) 26. Be7 {[%emt 0:00:04]} Kh8 {[%emt 0:00:16]} 27. d6 {[%emt 0:00:25]} (27. Bxf6 $142 {[%csl Gf6][%cal Rg3g7]} Rg8 28. Bxe5 Nxe5 29. Qxe5) 27... Rc5 {[%emt 0:00:39]} (27... Rc6 {was necessary.} 28. Rd1 Nh6) 28. Bh5 {[%emt 0:00:21] Bxf6 would be deadly.} Nh6 {[%emt 0:00:03]} 29. Rf3 {[%emt 0:00:10][%cal Og3g7] Intending Qxg7+! and mate.} Ng8 $2 {[%emt 0:02:20]} (29... Qxe4 30. Rxf6 Nf5) 30. Qg4 {[%emt 0:00:01] Rg3 would kill now.} Nh6 {[%emt 0:00:02] [#]} 31. Qxg7+ $3 {[%emt 0:00:32][%mdl 576] Decoy} Kxg7 {[%emt 0:00:19]} 32. Bxf6+ {[%emt 0:00:01]} Kf8 {[%emt 0:00:08]} 33. Be7+ $2 {[%emt 0:00:22] A strong pair of Bishops.} (33. Rg3 Nf5 34. exf5 Qxg2+ 35. Rxg2 Re8 36. Bg7+ {[%mdl 64] Deflection} Kg8 37. Bh6+ Kh8 38. Bf7 Bxc4 39. Bg7#) 33... Kg7 {[%emt 0:00:02][%cal Oh6g8] aiming for ...Ng8!} 34. Bf6+ $2 {[%emt 0:00:02]} (34. Rg3+ $18 Ng4 35. Bxg4 Bxc4 36. Bxd7+ Kf7 37. Rf3+ Kg7 38. Rg3+ Kf7 39. Rf3+ Kg7 40. Rg3+) 34... Kf8 {[%emt 0:00:05] [#]} 35. Be7+ $2 {[%emt 0:00:08]} (35. Rg3 $1 {mates} Nf5 36. exf5 Qxg2+ 37. Rxg2 Re8 38. Bg7+ {[%mdl 64] Deflection} Kg8 39. Bh6+ Kh8 40. Bf7 Bxc4 41. Bg7#) 35... Kg7 $1 {[%emt 0:00:01][%cal Oh6g8] Strongly threatening ...Ng8!} 36. Bf6+ $2 {[%emt 0:00:01] A brilliant game!   Weighted Error Value: White=0.49/Black=0.34} ({White has to play} 36. Rg3+ $18 Ng4 37. Bxg4 Bxc4 38. Bxd7+ Kf7 39. Rf3+ Kg7 40. Rg3+ Kf7 41. Rf3+ Kg7 42. Rg3+) 1/2-1/2

[Event "ChessKid Cup Div-II 2023"]
[Site "Online"]
[Date "2023.05.22"]
[Round "1.4"]
[White "Nguyen, Ngoc Truong Son"]
[Black "Andreikin, Dmitry"]
[Result "1-0"]
[ECO "D36"]
[WhiteElo "2645"]
[BlackElo "2729"]
[Annotator "TA"]
[PlyCount "67"]
[EventDate "2023.05.21"]
[EventType "k.o."]
[EventCountry "NET"]
[SourceTitle "playchess.com"]
[Source "ChessBase"]
[SourceQuality "1"]
[TimeControl "900+3"]

{[%evp 14,67,21,22,20,15,54,55,93,95,100,98,89,24,39,16,30,2,0,-2,-3,-12,111,78,81,78,119,91,212,229,236,216,290,285,445,396,810,527,533,532,525,502,611,582,657,642,1210,1147,1343,1265,2778,2745,1843,1141,1847,1104]} 1. d4 {[%emt 0:00:09]} Nf6 {[%emt 0:00:12]} 2. c4 {[%emt 0:00:07]} e6 {[%emt 0:00:01]} 3. Nc3 {[%emt 0:00:17]} d5 {[%emt 0:00:03]} 4. cxd5 {[%emt 0:00:04]} exd5 {[%emt 0:00:02]} 5. Bg5 {[%emt 0:00:04]} c6 {[%emt 0:00:01]} 6. Qc2 {[%emt 0:00:30]} Na6 {[%emt 0:00:10][%cal Bb8a6,Ba6c7,Bc7e6][%mdl 32]} 7. a3 {[%emt 0:00:34]} Nc7 {[%emt 0:00:22]} 8. e3 {[%emt 0:00:11]} Bg4 {[%emt 0:00:12][%cal Bc8g4,Bg4h5,Bh5g6][%mdl 32] D36: Queen's Gambit Declined: Exchange Variation: Main line (5 Bg5 c6 6 Qc2).} 9. Bd3 {[%emt 0:00:27]} Ne6 {[%emt 0:00:23]} 10. Bh4 {[%emt 0:00:38] [#]} Be7 $146 {[%emt 0:00:17] White is slightly better.} ({Predecessor:} 10... Bh5 11. f4 g5 12. fxg5 Ng4 13. Nf3 Be7 14. Qe2 Nxg5 15. O-O-O Nxf3 16. Bxe7 Qxe7 17. gxf3 {0-1 Hedin,G (2220)-Engstrom,K (2299) SWE-chT 9899 1998 (8)}) 11. h3 {[%emt 0:00:25] Strongly threatening Bxf6.} Bh5 {[%emt 0:00:03]} 12. f4 $1 {[%emt 0:00:05]} g5 {[%emt 0:00:31]} 13. fxg5 {[%emt 0:00:25]} (13. Bxg5 $16 Nxg5 14. fxg5) 13... Nd7 $11 {[%emt 0:00:21]} 14. g4 {[%emt 0:00:08]} Bg6 {[%emt 0:00:13]} 15. Nf3 {[%emt 0:00:05]} Nxg5 {[%emt 0:00:29]} 16. Bxg5 {[%emt 0:00:15]} Bxg5 {[%emt 0:00:02]} 17. O-O-O {[%emt 0:00:04]} Be7 {[%emt 0:00:54]} (17... Bxe3+ $11 {remains equal.} 18. Kb1 O-O) 18. e4 {[%emt 0:00:37] White is more active.} dxe4 {[%emt 0:01:09]} 19. Bxe4 {[%emt 0:00:03]} Qc7 {[%emt 0:00:47]} 20. Rhe1 {[%emt 0:00:57]} Nf6 {[%emt 0:02:49] Wards off Nd5. This move loses the game for Black.} (20... Nb6 $16) 21. Bxg6 $1 $18 {[%emt 0:00:33]} hxg6 {[%emt 0:00:01] [#]} 22. g5 $1 {[%emt 0:02:13]} Qf4+ {[%emt 0:01:15] [#]} 23. Kb1 $1 {[%emt 0:00:03]} Qxf3 {[%emt 0:01:41]} (23... Nh5 $142 24. Ne5 Qf5 25. Qxf5 gxf5) 24. Rd3 {[%emt 0:00:11]} Qxd3 {[%emt 0:00:24]} (24... Qf4) 25. Rxe7+ {[%emt 0:00:14] White is clearly winning.} Kxe7 {[%emt 0:00:02]} 26. gxf6+ {[%emt 0:00:01]} ({Not} 26. Qxd3 Ne8 $16) 26... Kxf6 {[%emt 0:00:02]} 27. Qxd3 {[%emt 0:00:01]} Rae8 {[%emt 0:00:00]} 28. d5 {[%emt 0:00:18][%cal Bd4d5,Bd5d6][%mdl 32]} Rh4 {[%emt 0:00:12]} 29. d6 {[%emt 0:00:23]} Rd8 {[%emt 0:00:06]} 30. Qe3 {[%emt 0:00:24] Hoping for Qe7+.} Rd7 {[%emt 0:00:09] Inhibits Qe7+.} 31. Qf2+ {[%emt 0:01:37]} Kg5 {[%emt 0:00:02]} 32. Qg3+ {[%emt 0:00:02]} Kh5 {[%emt 0:00:01]} 33. Qe5+ {[%emt 0:00:24]} g5 {[%emt 0:00:01] [#]} 34. Qe7 $3 {[%emt 0:00:21][%mdl 576] Promotion. A cool game by Nguyen.   Weighted Error Value: White=0.32/Black=0.65} 1-0

[Event "ChessKid Cup Div-II 2023"]
[Site "Online"]
[Date "2023.05.22"]
[Round "1.4"]
[White "Kravtsiv, Martyn"]
[Black "Anton Guijarro, David"]
[Result "0-1"]
[ECO "E20"]
[WhiteElo "2598"]
[BlackElo "2690"]
[Annotator "TA"]
[PlyCount "158"]
[EventDate "2023.05.21"]
[EventType "k.o."]
[EventCountry "NET"]
[SourceTitle "playchess.com"]
[Source "ChessBase"]
[SourceQuality "1"]
[TimeControl "900+3"]

{[%evp 13,158,-8,-5,-16,-25,-9,-9,-10,-5,-10,-15,-28,-13,-61,-55,-60,-80,-106,-109,-112,-92,-83,-76,-112,-109,-107,-105,-110,-106,-99,-67,-72,-62,-68,140,-125,-127,-124,-127,-120,-127,-139,0,-202,-107,-143,-91,-131,-159,-325,-308,-386,-405,-403,-341,-337,-337,-593,-563,-656,-651,-727,-776,-761,-745,-661,-545,-541,-527,-550,-544,-1182,-596,-1075,-1074,-1074,-1060,-950,-772,-3912,-681,-682,-681,-1514,-1435,-2881,-620,-620,-619,-1052,-572,-835,-693,-693,-678,-5740,-647,-564,-559,-5498,-5539,-5119,-4819,-1904,-1734,-5302,-5116,-5514,-5196,-5210,-1564,-5067,-1363,-4342,-1266,-1973,-1259,-2622,-1252,-1252,-1252,-4133,-4387,-6133,-1825,-29971,-29972,-29971,-29972,-29970,-29971,-29972,-29969,-29968,-29964,-29967,-29964,-29964,-11979,-29961,-29961,-29968,-29969,-29978,-29979,-29986,-29987]} 1. d4 {[%emt 0:00:05]} d5 {[%emt 0:00:05]} 2. c4 {[%emt 0:00:02]} e6 {[%emt 0:00:01]} 3. Nc3 {[%emt 0:00:03]} Nf6 {[%emt 0:00:01]} 4. Nf3 {[%emt 0:00:17]} Bb4 {[%emt 0:00:09]} 5. g3 {[%emt 0:00:02]} O-O {[%emt 0:00:04]} 6. Bg2 {[%emt 0:00:01]} dxc4 {[%emt 0:00:01]} 7. O-O {[%emt 0:00:02]} Nc6 {[%emt 0:00:03]} 8. Qa4 {[%emt 0:00:04]} Nd5 {[%emt 0:00:10]} 9. Qc2 {[%emt 0:00:02]} Be7 {[%emt 0:00:05]} 10. Rd1 {[%emt 0:00:02]} Ncb4 {[%emt 0:00:34]} 11. Qd2 {[%emt 0:00:11]} Nb6 {[%emt 0:00:05]} 12. h4 {[%emt 0:01:58]} Bd7 {[%emt 0:02:26]} 13. a3 {[%emt 0:00:44]} (13. Ne5 $11 {should be considered.}) 13... N4d5 $15 {[%emt 0:00:07]} 14. e4 {[%emt 0:00:39]} Nxc3 {[%emt 0:00:03]} 15. bxc3 {[%emt 0:00:05]} Ba4 {[%emt 0:00:07]} 16. Re1 {[%emt 0:00:03]} c5 {[%emt 0:00:09]} 17. Qf4 {[%emt 0:01:00]} Bc2 {[%emt 0:01:16]} 18. Ra2 {[%emt 0:01:24]} Bd3 {[%emt 0:00:13]} 19. a4 {[%emt 0:00:04]} cxd4 {[%emt 0:00:15]} 20. Nxd4 {[%emt 0:00:47]} Nd7 {[%emt 0:01:55]} 21. e5 {[%emt 0:00:05]} Nc5 {[%emt 0:00:02]} 22. Ba3 {[%emt 0:00:14][%cal Og2b7]} Rb8 {[%emt 0:00:10]} (22... Nxa4 $2 23. Bxe7 (23. Bxb7 Bxa3 24. Bxa8 Bc5 $14) 23... Qxe7 24. Rxa4 $18) 23. Nb5 {[%emt 0:00:47]} Qd7 $2 {[%emt 0:00:52]} (23... Nxa4 $2 24. Bxe7 (24. Nxa7 $2 {perishes.} Nxc3 25. Bxe7 Qxe7 $19) 24... Qxe7 25. Rxa4 $18) (23... a6 $15 {stays ahead.} 24. Nd6 Nxa4 25. Nxb7 (25. Bxb7 $2 {loses.} Nxc3 26. Rb2 Nb5 $19) 25... Rxb7 26. Bxe7 Qxe7 27. Rxa4 Rb3) 24. Nxa7 $2 {[%emt 0:01:18][%mdl 8192]} (24. Qd4 $16 {is necessary to keep the advantage.} Qxd4 25. cxd4) 24... Qxa4 $17 {[%emt 0:04:07]} 25. Bxc5 {[%emt 0:00:09]} Qxa2 {[%emt 0:00:01]} 26. Bxe7 {[%emt 0:00:01]} Qxa7 {[%emt 0:00:01]} 27. h5 {[%emt 0:01:14][%cal Oh5h6] [#]} h6 {[%emt 0:00:39]} 28. g4 $2 {[%emt 0:00:02] [#]} (28. Bf6 $1 $11 {and White is okay.}) 28... Qa5 {[%emt 0:00:19]} 29. Bb4 {[%emt 0:00:04] [#]} Qd8 {[%emt 0:00:02]} (29... Qa2 $142 $1 30. Bd6 Qb3 31. Bxb8 Rxb8) 30. Qg3 {[%emt 0:02:41]} Re8 {[%emt 0:00:11]} 31. f4 $2 {[%emt 0:00:01]} (31. Bd6 $17) 31... Ra8 $19 {[%emt 0:00:06]} 32. g5 {[%emt 0:00:23]} Kh8 {[%emt 0:00:06]} 33. Qe3 {[%emt 0:00:11]} Bf5 {[%emt 0:00:44]} 34. Bxb7 {[%emt 0:00:17]} Ra2 {[%emt 0:00:05]} 35. Bd6 $2 {[%emt 0:00:38]} (35. Bf3) 35... Rg8 {[%emt 0:00:06]} 36. Bf3 {[%emt 0:00:12]} g6 {[%emt 0:00:17]} 37. Kh1 {[%emt 0:00:40]} hxg5 {[%emt 0:00:17]} 38. fxg5 {[%emt 0:00:03]} gxh5 {[%emt 0:00:13]} 39. Rg1 {[%emt 0:00:02]} Bg6 {[%emt 0:00:12]} 40. Qd4 {[%emt 0:00:05]} Kh7 {[%emt 0:00:20]} 41. Qxc4 {[%emt 0:00:06]} Rf2 {[%emt 0:00:03]} 42. Bc6 {[%emt 0:00:11]} Qa5 {[%emt 0:00:07] ...Rc8 would be deadly.} 43. Qd4 {[%emt 0:00:03]} Qa2 {[%emt 0:00:04][%csl Ga2][%cal Rf2h2]} 44. Rg2 {[%emt 0:00:01] Inhibits Rh2+.} Rxg2 {[%emt 0:00:05]} 45. Bxg2 {[%emt 0:00:00]} Rc8 {[%emt 0:00:03]} 46. Bb4 {[%emt 0:00:06]} Qb1+ {[%emt 0:00:06]} (46... Rc4 $142 47. Qe3 Rh4+ 48. Kg1 Qb1+ 49. Kf2 Be4 50. g6+ Kxg6) 47. Kh2 {[%emt 0:00:01]} Qf5 {[%emt 0:00:00] Dodges Qf2} 48. Qe3 {[%emt 0:00:02]} Rc4 {[%emt 0:00:03] Prevents Qd4} 49. Bh3 {[%emt 0:00:09]} Qf4+ {[%emt 0:00:08]} (49... Qc2+ $142 50. Bg2 Rh4+ 51. Kg1 Qb1+ 52. Kf2 Be4 53. g6+ Kxg6) 50. Qxf4 {[%emt 0:00:02]} Rxf4 {[%emt 0:00:00][%mdl 4096] Endgame KRB-KB} 51. Bc5 {[%emt 0:00:01]} Re4 {[%emt 0:00:08]} 52. Bd4 {[%emt 0:00:02]} Re2+ {[%emt 0:00:03]} 53. Kg3 {[%emt 0:00:01]} Bf5 {[%emt 0:00:04][%cal Oh5h4]} 54. Bg2 {[%emt 0:00:02]} Rc2 {[%emt 0:00:03]} (54... h4+ $142 55. Kf3 Rc2) 55. Bf3 {[%emt 0:00:01]} Kg6 {[%emt 0:00:01]} 56. Bd1 {[%emt 0:00:11]} Rd2 {[%emt 0:00:04]} 57. Bf3 {[%emt 0:00:00]} Rd3 {[%emt 0:00:04][%cal Of5e4] ( -> ...Be4!)} (57... Kxg5 $2 58. Be3+ Kg6 59. Bxd2 $18) 58. Kf4 {[%emt 0:00:09] Repels Be4} h4 {[%emt 0:00:02] Hoping for ...h3.} 59. Be2 {[%emt 0:00:04]} Rd2 {[%emt 0:00:01]} 60. Ke3 {[%emt 0:00:03]} Rc2 {[%emt 0:00:02][%cal Oh4h3] ...h3! is the strong threat.} 61. Bd1 {[%emt 0:00:03]} Ra2 {[%emt 0:00:06]} (61... h3 $142 62. Kf4 Rc1) 62. Kf4 {[%emt 0:00:04]} Ra1 {[%emt 0:00:07]} (62... h3 $142 63. Bf3 h2) 63. Be2 {[%emt 0:00:02]} Re1 {[%emt 0:00:01]} (63... Rc1 $142 64. Bb5 Rb1) 64. Bb5 {[%emt 0:00:03]} Rb1 {[%emt 0:00:03]} 65. Be2 {[%emt 0:00:02]} Rb2 {[%emt 0:00:01]} (65... Rc1 $142 66. Bb5 h3) 66. Bf3 {[%emt 0:00:01]} Rc2 {[%emt 0:00:03]} 67. Bc6 {[%emt 0:00:02]} h3 {[%emt 0:00:02]} 68. Kg3 {[%emt 0:00:02]} h2 {[%emt 0:00:01]} (68... Kxg5 $142 69. Bh1 h2 70. Be3+ Kg6) 69. Bg2 {[%emt 0:00:01]} Kxg5 {[%emt 0:00:03]} 70. Be3+ {[%emt 0:00:02]} Kg6 {[%emt 0:00:02]} 71. Bd4 {[%emt 0:00:01]} Kg7 {[%emt 0:00:09]} 72. Bf3 {[%emt 0:00:03]} Rd2 {[%emt 0:00:03]} 73. Bg2 {[%emt 0:00:02]} Kg8 {[%emt 0:00:02]} 74. Bh1 {[%emt 0:00:02]} Rc2 {[%emt 0:00:03]} 75. Bg2 {[%emt 0:00:02]} Kf8 {[%emt 0:00:01]} (75... Bd3 $142 76. Kxh2 Be4 77. Kg3 Rxg2+ 78. Kf4 Bd5 79. Ke3 Kg7 80. Kd3 Kg6 81. Bc5 Kf5 82. Bd6 Rg3+ 83. Kd4 Rg4+ 84. Kc5 Rc4+ 85. Kb6 Rxc3 86. Ka7 Rc6 87. Kb8 f6 88. Ka7 Kf4 89. Bf8 fxe5 90. Bb4 e4 91. Bd2+ e3 92. Be1 Kf3 93. Bh4 e2 94. Be1 Rc1 95. Bd2 e1=Q 96. Bxe1 Rxe1 97. Kb8 Rc1 98. Ka7 Rb1 99. Ka6 Ke3 100. Ka5 e5 101. Ka6 Kd4 102. Ka7 Kc5 103. Ka6 Ra1#) 76. Bc6 {[%emt 0:00:03]} Bd3 {[%emt 0:00:03]} 77. Bc5+ {[%emt 0:00:08]} Kg8 {[%emt 0:00:02]} 78. Bd4 {[%emt 0:00:01]} Bc4 {[%emt 0:00:01]} 79. Be4 {[%emt 0:00:08] [#]} Bd5 $1 {[%emt 0:00:03]} 0-1